{"text_format":"1","workbook":"xlsx","n_sheets":2,"sheets":["GRAFICO","BANCO DADOS"],"not_rendered":{"charts":1,"images":0,"macros":1,"external_links":0,"defined_names":2,"comments":0,"pivot_tables":0},"unopened":[],"bounds":{"document_bytes":16777216,"sheet_cells":100000,"rows_first":2000,"rows_last":500,"rows_between":2000,"halvings":0,"cell_chars":16384,"cell_head_chars":4096},"cells_cut":0,"cells_raw":0,"read":"whole","date_system":"1900"}

{"sheet":"GRAFICO","index":0,"n_rows":27,"n_cols":1,"rows_kept":27,"cut":false,"hidden":false,"merged":[]}
["Selecione o Piloto e clique sobre o gráfico."]
["Agostinho Neves"]
["Alexandre Melillo"]
["Anderson Oliveira"]
["Anderson Teixeira"]
["Aparecido Arantes"]
["Arthur Santiago"]
["Danilo Soares"]
["Emerson Guimarães"]
["Ezequiel Netto"]
["Felipe Franca"]
["Fernando Mota"]
["Gabriel Gontijo"]
["Gerson Junior"]
["Gladson Souza"]
["Gladystone Reis"]
["Joanes Gouvea"]
["Leandro Leite"]
["Leodegario Junior"]
["Leonardo Mattioda"]
["Luciano Brandão"]
["Lúcio Chequer"]
["Matheus Dias"]
["Rodrigo Guimaraes"]
["Thiago Xavier"]
["Vitor Diniz"]
["Wilson Cristofani"]

{"sheet":"BANCO DADOS","index":1,"n_rows":2601,"n_cols":22,"rows_kept":2601,"cut":false,"hidden":true,"merged":[]}
["ANO","ETAPA","PILOTOS","LARG","FINAL",null,null,null,null,null,null,null,null,"ANO","ETAPA","PILOTOS","LARG","FINAL",null,{"$f":"INT(SUBTOTAL(9,T2:T2601)/COUNT(9,Q2:Q2601))","v":1},{"$f":"P2","v":"Alexandre Melillo"},"Alexandre Melillo"]
[18,1,"Marcelo Silva",2,1,null,null,null,null,null,null,null,null,18,1,"Alexandre Melillo",11,13,null,{"$f":"Q2-R2","v":-2}]
[18,1,"Wilson Cristofani",5,2,null,null,null,null,null,null,null,null,18,2,"Alexandre Melillo",10,3,null,{"$f":"Q3-R3","v":7}]
[18,1,"Diogo Santos",6,3,null,null,null,null,null,null,null,null,18,3,"Alexandre Melillo",17,24,null,-7]
[18,1,"Joanes Gouvêa",10,4,null,null,null,null,null,null,null,null,18,4,"Alexandre Melillo",12,8,null,4]
[18,1,"Lucas Seixas",8,5,null,null,null,null,null,null,null,null,18,5,"Alexandre Melillo",11,20,null,-9]
[18,1,"Fernando Mota",9,6,null,null,null,null,null,null,null,null,18,6,"Alexandre Melillo",13,15,null,-2]
[18,1,"Wesley Bambirra",1,7,null,null,null,null,null,null,null,null,18,7,"Alexandre Melillo",14,12,null,2]
[18,1,"Jarbas Reis",3,8,null,null,null,null,null,null,null,null,18,8,"Alexandre Melillo",11,12,null,-1]
[18,1,"Andreson Souza",13,9,null,null,null,null,null,null,null,null,18,9,"Alexandre Melillo",9,9,null,0]
[18,1,"Anderson Teixeira",16,10,null,null,null,null,null,null,null,null,18,10,"Alexandre Melillo",6,15,null,-9]
[18,1,"Saulo Pompermayer",14,11,null,null,null,null,null,null,null,null,18,11,"Alexandre Melillo",6,10,null,-4]
[18,1,"Diego Rodrigues",17,12,null,null,null,null,null,null,null,null,18,12,"Alexandre Melillo",9,6,null,3]
[18,1,"Alexandre Melillo",11,13,null,null,null,null,null,null,null,null,19,1,"Alexandre Melillo",3,2,null,1]
[18,1,"Leandro Leite",4,14,null,null,null,null,null,null,null,null,19,2,"Alexandre Melillo",12,4,null,8]
[18,1,"Guilherme Henrique",19,15,null,null,null,null,null,null,null,null,19,4,"Alexandre Melillo",13,3,null,10]
[18,1,"Marcelo Santiago",15,16,null,null,null,null,null,null,null,null,19,5,"Alexandre Melillo",10,6,null,4]
[18,1,"Gustavo Barros",21,17,null,null,null,null,null,null,null,null,19,6,"Alexandre Melillo",8,7,null,1]
[18,1,"Guilherme Alves",22,18,null,null,null,null,null,null,null,null,19,7,"Alexandre Melillo",9,1,null,8]
[18,1,"Carlos Gomes",20,19,null,null,null,null,null,null,null,null,19,9,"Alexandre Melillo",14,8,null,6]
[18,1,"Renato Diógenes",25,20,null,null,null,null,null,null,null,null,19,10,"Alexandre Melillo",9,8,null,1]
[18,1,"Leodegario Junior",23,21,null,null,null,null,null,null,null,null,19,11,"Alexandre Melillo",6,4,null,2]
[18,1,"Aparecido Arantes",12,22,null,null,null,null,null,null,null,null,19,12,"Alexandre Melillo",5,3,null,2]
[18,1,"Vilmar Conrado",24,23,null,null,null,null,null,null,null,null,20,1,"Alexandre Melillo",4,11,null,-7]
[18,1,"Agostinho Neves",7,24,null,null,null,null,null,null,null,null,20,2,"Alexandre Melillo",3,1,null,2]
[18,1,"José Junior",27,25,null,null,null,null,null,null,null,null,20,4,"Alexandre Melillo",11,6,null,5]
[18,1,"LUIZ GUSTAVO",18,26,null,null,null,null,null,null,null,null,20,6,"Alexandre Melillo",8,2,null,6]
[18,1,"MATHEUS SANTIAGO",26,27,null,null,null,null,null,null,null,null,20,7,"Alexandre Melillo",10,9,null,1]
[18,1,"Bruno Nascimento",28,28,null,null,null,null,null,null,null,null,20,8,"Alexandre Melillo",9,3,null,6]
[18,2,"Fernando Mota",15,1,null,null,null,null,null,null,null,null,20,9,"Alexandre Melillo",10,4,null,6]
[18,2,"Raphael Reis",25,2,null,null,null,null,null,null,null,null,20,10,"Alexandre Melillo",9,5,null,4]
[18,2,"Alexandre Melillo",10,3,null,null,null,null,null,null,null,null,20,11,"Alexandre Melillo",5,3,null,2]
[18,2,"Diogo Santos",18,4,null,null,null,null,null,null,null,null,21,1,"Alexandre Melillo",13,1,null,12]
[18,2,"Joanes Gouvêa",17,5,null,null,null,null,null,null,null,null,21,2,"Alexandre Melillo",3,5,null,-2]
[18,2,"Wilson Cristofani",19,6,null,null,null,null,null,null,null,null,21,3,"Alexandre Melillo",8,5,null,3]
[18,2,"Leandro Leite",9,7,null,null,null,null,null,null,null,null,21,4,"Alexandre Melillo",7,5,null,2]
[18,2,"Felipe Antunes",26,8,null,null,null,null,null,null,null,null,21,5,"ALEXANDRE MELILLO",18,9,null,9]
[18,2,"Anderson Teixeira",11,9,null,null,null,null,null,null,null,null,21,6,"Alexandre Melillo",13,6,null,7]
[18,2,"Gustavo Barros",6,10,null,null,null,null,null,null,null,null,21,7,"Alexandre Melillo",8,6,null,2]
[18,2,"Jarbas Reis",13,11,null,null,null,null,null,null,null,null,21,8,"Alexandre Melillo",6,8,null,-2]
[18,2,"Bruno Nosse",23,12,null,null,null,null,null,null,null,null,21,9,"Alexandre Melillo",7,3,null,4]
[18,2,"Lucas Seixas",16,13,null,null,null,null,null,null,null,null,21,10,"Alexandre Melillo",7,7,null,0]
[18,2,"Wesley Bambirra",14,14,null,null,null,null,null,null,null,null,21,11,"Alexandre Melillo",8,1,null,7]
[18,2,"Christian Guedes",24,15,null,null,null,null,null,null,null,null,21,12,"Alexandre Melillo",7,7,null,0]
[18,2,"Guilherme Alves",5,16,null,null,null,null,null,null,null,null,22,1,"Alexandre Melillo",2,1,null,1]
[18,2,"Marcelo Silva",20,17,null,null,null,null,null,null,null,null,22,2,"Alexandre Melillo",6,4,null,2]
[18,2,"Andreson Souza",12,18,null,null,null,null,null,null,null,null,22,3,"Alexandre Melillo",6,23,null,-17]
[18,2,"Leodegario Junior",3,19,null,null,null,null,null,null,null,null,22,4,"Alexandre Melillo",10,10,null,0]
[18,2,"Alan Moreira",22,20,null,null,null,null,null,null,null,null,22,6,"Alexandre Melillo",3,12,null,-9]
[18,2,"Marcelo Santiago",7,21,null,null,null,null,null,null,null,null,22,7,"Alexandre Melillo",2,1,null,1]
[18,2,"Vilmar Conrado",1,22,null,null,null,null,null,null,null,null,22,8,"Alexandre Melillo",5,1,null,4]
[18,2,"Aparecido Arantes",2,23,null,null,null,null,null,null,null,null,22,9,"Alexandre Melillo",6,4,null,2]
[18,2,"Guilherme Henrique",8,24,null,null,null,null,null,null,null,null,22,10,"Alexandre Melillo",6,12,null,-6]
[18,2,"Renato Diógenes",4,25,null,null,null,null,null,null,null,null,22,11,"Alexandre Melillo",5,5,null,0]
[18,2,"Ademar Júnior",21,26,null,null,null,null,null,null,null,null,22,12,"Alexandre Melillo",6,5,null,1]
[18,3,"Marcelo Silva",18,1,null,null,null,null,null,null,null,null,null,null,null,null,null,null,0]
[18,3,"Christian Guedes",3,2,null,null,null,null,null,null,null,null,null,null,null,null,null,null,0]
[18,3,"Joanes Gouvêa",19,3,null,null,null,null,null,null,null,null,null,null,null,null,null,null,0]
[18,3,"Wilson Cristofani",20,4,null,null,null,null,null,null,null,null,null,null,null,null,null,null,0]
[18,3,"Diego Rodrigues",25,5,null,null,null,null,null,null,null,null,null,null,null,null,null,null,0]
[18,3,"Fernando Mota",22,6,null,null,null,null,null,null,null,null,null,null,null,null,null,null,0]
[18,3,"Agostinho Neves",23,7,null,null,null,null,null,null,null,null,null,null,null,null,null,null,0]
[18,3,"Lucas Seixas",16,8,null,null,null,null,null,null,null,null,null,null,null,null,null,null,0]
[18,3,"Aparecido Arantes",6,9,null,null,null,null,null,null,null,null,null,null,null,null,null,null,0]
[18,3,"Wesley Bambirra",12,10,null,null,null,null,null,null,null,null,null,null,null,null,null,null,0]
[18,3,"Jarbas Reis",15,11,null,null,null,null,null,null,null,null,null,null,null,null,null,null,0]
[18,3,"Anderson Teixeira",14,12,null,null,null,null,null,null,null,null,null,null,null,null,null,null,{"$f":"Q67-R67","v":0}]
[18,3,"Bruno Nosse",4,13,null,null,null,null,null,null,null,null,null,null,null,null,null,null,0]
[18,3,"Vilmar Conrado",5,14,null,null,null,null,null,null,null,null,null,null,null,null,null,null,0]
[18,3,"Gustavo Barros",10,15,null,null,null,null,null,null,null,null,null,null,null,null,null,null,0]
[18,3,"Leandro Leite",13,16,null,null,null,null,null,null,null,null,null,null,null,null,null,null,0]
[18,3,"Diogo Santos",21,17,null,null,null,null,null,null,null,null,null,null,null,null,null,null,0]
[18,3,"Raphael Reis",9,18,null,null,null,null,null,null,null,null,null,null,null,null,null,null,0]
[18,3,"Alan Moreira",2,19,null,null,null,null,null,null,null,null,null,null,null,null,null,null,0]
[18,3,"Andreson Souza",11,20,null,null,null,null,null,null,null,null,null,null,null,null,null,null,0]
[18,3,"Guilherme Alves",8,21,null,null,null,null,null,null,null,null,null,null,null,null,null,null,0]
[18,3,"Carlos Gomes",24,22,null,null,null,null,null,null,null,null,null,null,null,null,null,null,0]
[18,3,"Ademar Júnior",1,23,null,null,null,null,null,null,null,null,null,null,null,null,null,null,0]
[18,3,"Alexandre Melillo",17,24,null,null,null,null,null,null,null,null,null,null,null,null,null,null,0]
[18,3,"MATHEUS PHILIPPE",26,25,null,null,null,null,null,null,null,null,null,null,null,null,null,null,0]
[18,3,"PAULO LAGES",27,26,null,null,null,null,null,null,null,null,null,null,null,null,null,null,0]
[18,3,"Renato Diógenes",28,27,null,null,null,null,null,null,null,null,null,null,null,null,null,null,0]
[18,3,"Guilherme Henrique",7,28,null,null,null,null,null,null,null,null,null,null,null,null,null,null,0]
[18,4,"Wesley Bambirra",14,1,null,null,null,null,null,null,null,null,null,null,null,null,null,null,0]
[18,4,"Marcelo Silva",21,2,null,null,null,null,null,null,null,null,null,null,null,null,null,null,0]
[18,4,"Agostinho Neves",4,3,null,null,null,null,null,null,null,null,null,null,null,null,null,null,0]
[18,4,"Fernando Mota",20,4,null,null,null,null,null,null,null,null,null,null,null,null,null,null,0]
[18,4,"Wilson Cristofani",19,5,null,null,null,null,null,null,null,null,null,null,null,null,null,null,0]
[18,4,"Gustavo Barros",10,6,null,null,null,null,null,null,null,null,null,null,null,null,null,null,0]
[18,4,"Jarbas Reis",15,7,null,null,null,null,null,null,null,null,null,null,null,null,null,null,0]
[18,4,"Alexandre Melillo",12,8,null,null,null,null,null,null,null,null,null,null,null,null,null,null,0]
[18,4,"Joanes Gouvêa",18,9,null,null,null,null,null,null,null,null,null,null,null,null,null,null,0]
[18,4,"Aparecido Arantes",8,10,null,null,null,null,null,null,null,null,null,null,null,null,null,null,0]
[18,4,"Guilherme Henrique",3,11,null,null,null,null,null,null,null,null,null,null,null,null,null,null,0]
[18,4,"Anderson Teixeira",13,12,null,null,null,null,null,null,null,null,null,null,null,null,null,null,0]
[18,4,"Guilherme Alves",7,13,null,null,null,null,null,null,null,null,null,null,null,null,null,null,0]
[18,4,"Lucas Seixas",16,14,null,null,null,null,null,null,null,null,null,null,null,null,null,null,0]
[18,4,"Leandro Leite",11,15,null,null,null,null,null,null,null,null,null,null,null,null,null,null,0]
[18,4,"Diego Rodrigues",27,16,null,null,null,null,null,null,null,null,null,null,null,null,null,null,0]
[18,4,"Diogo Santos",17,17,null,null,null,null,null,null,null,null,null,null,null,null,null,null,0]
[18,4,"Felipe Antunes",25,18,null,null,null,null,null,null,null,null,null,null,null,null,null,null,0]
[18,4,"Renato Diógenes",2,19,null,null,null,null,null,null,null,null,null,null,null,null,null,null,0]
[18,4,"Christian Guedes",9,20,null,null,null,null,null,null,null,null,null,null,null,null,null,null,0]
[18,4,"Saulo Pompermayer",26,21,null,null,null,null,null,null,null,null,null,null,null,null,null,null,0]
[18,4,"Marcelo Santiago",23,22,null,null,null,null,null,null,null,null,null,null,null,null,null,null,0]
[18,4,"Leodegario Junior",22,23,null,null,null,null,null,null,null,null,null,null,null,null,null,null,0]
[18,4,"Vilmar Conrado",6,24]
[18,4,"Bruno Nosse",5,25]
[18,4,"DIOGO SANTIAGO",28,26]
[18,4,"Bruno Nascimento",24,27]
[18,4,"Carlos Gomes",1,28]
[18,5,"Christian Guedes",9,1]
[18,5,"Saulo Pompermayer",1,2]
[18,5,"Lucas Seixas",14,3]
[18,5,"Marcelo Silva",24,4]
[18,5,"Fernando Mota",19,5]
[18,5,"Jarbas Reis",13,6]
[18,5,"Wesley Bambirra",16,7]
[18,5,"Leandro Leite",10,8]
[18,5,"Anderson Teixeira",12,9]
[18,5,"Diego Rodrigues",8,10]
[18,5,"Raphael Reis",20,11]
[18,5,"Leodegario Junior",2,12]
[18,5,"Marcelo Santiago",3,13]
[18,5,"Guilherme Henrique",5,14]
[18,5,"Wilson Cristofani",18,15]
[18,5,"Bruno Nosse",6,16]
[18,5,"Guilherme Alves",23,17]
[18,5,"Diogo Santos",15,18]
[18,5,"Joanes Gouvêa",17,19]
[18,5,"Alexandre Melillo",11,20]
[18,5,"Vilmar Conrado",7,21]
[18,5,"Alan Moreira",21,22]
[18,5,"Ademar Júnior",25,23]
[18,5,"Felipe Antunes",4,24]
[18,5,"Aparecido Arantes",22,25]
[18,5,"LEANDRO LACERDA",26,26]
[18,6,"Jarbas Reis",14,1]
[18,6,"Marcelo Silva",20,2]
[18,6,"Lucas Seixas",16,3]
[18,6,"Joanes Gouvêa",18,4]
[18,6,"Christian Guedes",19,5]
[18,6,"Bruno Nosse",7,6]
[18,6,"Aparecido Arantes",5,7]
[18,6,"Vilmar Conrado",1,8]
[18,6,"Anderson Teixeira",9,9]
[18,6,"Fernando Mota",22,10]
[18,6,"Wesley Bambirra",17,11]
[18,6,"Guilherme Henrique",3,12]
[18,6,"Wilson Cristofani",21,13]
[18,6,"Agostinho Neves",24,14]
[18,6,"Alexandre Melillo",13,15]
[18,6,"Raphael Reis",12,16]
[18,6,"Saulo Pompermayer",11,17]
[18,6,"Leandro Leite",10,18]
[18,6,"Marcelo Santiago",4,19]
[18,6,"Guilherme Alves",6,20]
[18,6,"Lúcio Chequer",25,21]
[18,6,"Diogo Santos",15,22]
[18,6,"Anderson Oliveira",26,23]
[18,6,"ALEXANDRE BICALH",27,24]
[18,6,"Leodegario Junior",2,25]
[18,6,"Gustavo Barros",23,26]
[18,6,"Diego Rodrigues",8,27]
[18,7,"Wesley Bambirra",16,1]
[18,7,"Joanes Gouvêa",20,2]
[18,7,"Gustavo Barros",9,3]
[18,7,"Saulo Pompermayer",10,4]
[18,7,"Guilherme Alves",6,5]
[18,7,"Vilmar Conrado",4,6]
[18,7,"Diego Rodrigues",8,7]
[18,7,"Lúcio Chequer",1,8]
[18,7,"Fernando Mota",23,9]
[18,7,"Christian Guedes",19,10]
[18,7,"Aparecido Arantes",7,11]
[18,7,"Alexandre Melillo",14,12]
[18,7,"Felipe Antunes",26,13]
[18,7,"Marcelo Silva",22,14]
[18,7,"Wilson Cristofani",21,15]
[18,7,"Renato Diógenes",24,16]
[18,7,"Jarbas Reis",17,17]
[18,7,"Anderson Teixeira",13,18]
[18,7,"Leodegario Junior",2,19]
[18,7,"Raphael Reis",12,20]
[18,7,"Diogo Santos",15,21]
[18,7,"Marcelo Santiago",3,22]
[18,7,"João Ferreira",27,23]
[18,7,"Ademar Júnior",25,24]
[18,7,"Guilherme Henrique",5,25]
[18,7,"Lucas Seixas",18,26]
[18,7,"Leandro Leite",11,27]
[18,8,"Felipe Antunes",2,1]
[18,8,"Saulo Pompermayer",13,2]
[18,8,"Agostinho Neves",21,3]
[18,8,"Fernando Mota",19,4]
[18,8,"Guilherme Alves",7,5]
[18,8,"Lúcio Chequer",1,6]
[18,8,"Lucas Seixas",15,7]
[18,8,"Gustavo Barros",12,8]
[18,8,"Christian Guedes",17,9]
[18,8,"Wesley Bambirra",18,10]
[18,8,"Raphael Reis",8,11]
[18,8,"Alexandre Melillo",11,12]
[18,8,"Aparecido Arantes",6,13]
[18,8,"Wilson Cristofani",16,14]
[18,8,"Jarbas Reis",14,15]
[18,8,"Diego Rodrigues",9,16]
[18,8,"Joanes Gouvêa",20,17]
[18,8,"Guilherme Henrique",4,18]
[18,8,"Vilmar Conrado",5,19]
[18,8,"Leandro Leite",10,20]
[18,8,"Leodegario Junior",22,21]
[18,8,"Marcelo Santiago",3,22]
[18,9,"Christian Guedes",14,1]
[18,9,"Lucas Seixas",13,2]
[18,9,"Wilson Cristofani",11,3]
[18,9,"Jarbas Reis",12,4]
[18,9,"Diego Rodrigues",6,5]
[18,9,"Fernando Mota",17,6]
[18,9,"Raphael Reis",7,7]
[18,9,"Felipe Antunes",3,8]
[18,9,"Alexandre Melillo",9,9]
[18,9,"Marcelo Silva",19,10]
[18,9,"Anderson Teixeira",18,11]
[18,9,"Joanes Gouvêa",16,12]
[18,9,"Gustavo Barros",10,13]
[18,9,"Vilmar Conrado",2,14]
[18,9,"GUILHERME MINELLI",26,15]
[18,9,"Renato Diógenes",22,16]
[18,9,"Guilherme Alves",8,17]
[18,9,"Alan Moreira",24,18]
[18,9,"Leandro Leite",5,19]
[18,9,"Aparecido Arantes",4,20]
[18,9,"Andreson Souza",25,21]
[18,9,"Leodegario Junior",1,22]
[18,9,"Anderson Oliveira",21,23]
[18,9,"Bruno Nosse",20,24]
[18,9,"WESLEY CANUTO",27,25]
[18,9,"Ademar Júnior",23,26]
[18,9,"Wesley Bambirra",15,27]
[18,10,"Marcelo Silva",8,1]
[18,10,"Joanes Gouvêa",18,2]
[18,10,"Lucas Seixas",17,3]
[18,10,"Christian Guedes",12,4]
[18,10,"Fernando Mota",19,5]
[18,10,"Wesley Bambirra",11,6]
[18,10,"Wilson Cristofani",10,7]
[18,10,"Diego Rodrigues",5,8]
[18,10,"Guilherme Henrique",13,9]
[18,10,"Aparecido Arantes",3,10]
[18,10,"Jarbas Reis",9,11]
[18,10,"Felipe Antunes",4,12]
[18,10,"Andreson Souza",1,13]
[18,10,"Lúcio Chequer",14,14]
[18,10,"Alexandre Melillo",6,15]
[18,10,"Leodegario Junior",2,16]
[18,10,"Agostinho Neves",16,17]
[18,10,"Marcelo Santiago",15,18]
[18,10,"Gustavo Barros",7,19]
[18,11,"Lucas Seixas",8,1]
[18,11,"Diego Rodrigues",20,2]
[18,11,"Jarbas Reis",7,3]
[18,11,"Fernando Mota",13,4]
[18,11,"Wilson Cristofani",9,5]
[18,11,"LEONARDO HAIDUC",21,6]
[18,11,"Marcelo Silva",11,7]
[18,11,"Joanes Gouvêa",12,8]
[18,11,"Guilherme Alves",15,9]
[18,11,"Alexandre Melillo",6,10]
[18,11,"Guilherme Henrique",3,11]
[18,11,"Felipe Antunes",5,12]
[18,11,"Saulo Pompermayer",19,13]
[18,11,"Christian Guedes",14,14]
[18,11,"Aparecido Arantes",4,15]
[18,11,"Diogo Santos",18,16]
[18,11,"Andreson Souza",1,17]
[18,11,"Raphael Reis",17,18]
[18,11,"Anderson Teixeira",16,19]
[18,11,"Wesley Bambirra",10,20]
[18,11,"Leodegario Junior",2,21]
[18,11,"ADRIANO VELOSO",22,22]
[18,11,"LEANDRO CESAR",23,23]
[18,11,"WESLEY CANUTO",24,24]
[18,12,"Marcelo Silva",11,1]
[18,12,"Joanes Gouvêa",12,2]
[18,12,"Diego Rodrigues",8,3]
[18,12,"Lucas Seixas",14,4]
[18,12,"Christian Guedes",13,5]
[18,12,"Alexandre Melillo",9,6]
[18,12,"Fernando Mota",15,7]
[18,12,"Felipe Antunes",6,8]
[18,12,"Andreson Souza",1,9]
[18,12,"Leandro Leite",16,10]
[18,12,"Saulo Pompermayer",5,11]
[18,12,"Leodegario Junior",2,12]
[18,12,"Guilherme Alves",7,13]
[18,12,"Guilherme Henrique",3,14]
[18,12,"Aparecido Arantes",4,15]
[18,12,"Wilson Cristofani",10,16]
[19,1,"Rômulo Alvarenga",15,21]
[19,1,"Fernando Mota",1,1]
[19,1,"Alexandre Melillo",3,2]
[19,1,"Andreson Souza",5,3]
[19,1,"Leandro Leite",4,4]
[19,1,"Luciano Brandão",2,5]
[19,1,"Lúcio Chequer",8,6]
[19,1,"Aparecido Arantes",6,7]
[19,1,"Agostinho Neves",9,8]
[19,1,"Ed Hunt",11,9]
[19,1,"Marcus Gregório",10,10]
[19,1,"Felipe Cardoso",7,11]
[19,1,"Breno Guerreiro",14,12]
[19,1,"THIAGO FARIA",16,13]
[19,1,"Mathias Helder",13,14]
[19,1,"FILIPE MENDES",12,15]
[19,1,"Gladystone Reis",19,16]
[19,1,"Mario Lott",18,17]
[19,1,"LUIZ FERNANDO",17,18]
[19,1,"ELESSANDRO ALVES",20,19]
[19,1,"CARLOS HENRIQUE",21,20]
[19,2,"Fernando Mota",13,1]
[19,2,"Luciano Brandão",9,2]
[19,2,"Agostinho Neves",6,3]
[19,2,"Alexandre Melillo",12,4]
[19,2,"Breno Motta",3,5]
[19,2,"Leandro Leite",10,6]
[19,2,"Andreson Souza",11,7]
[19,2,"Leodegario Junior",14,8]
[19,2,"Aparecido Arantes",7,9]
[19,2,"James Hunt",5,10]
[19,2,"FILIPE MENDES",16,11]
[19,2,"Lúcio Chequer",8,12]
[19,2,"Mathias Almeida",2,13]
[19,2,"Gladystone Reis",1,14]
[19,2,"Marcus Gregório",4,15]
[19,2,"ELESSANDRO ALVES",15,16]
[19,3,"Fernando Mota",13,1]
[19,3,"Andreson Souza",10,2]
[19,3,"Diego Rodrigues",15,3]
[19,3,"Leandro Leite",11,4]
[19,3,"Anderson Teixeira",20,5]
[19,3,"Breno Motta",8,6]
[19,3,"Agostinho Neves",9,7]
[19,3,"James Hunt",5,8]
[19,3,"Leodegario Junior",1,9]
[19,3,"JOSE LAMY",16,10]
[19,3,"Lúcio Chequer",6,11]
[19,3,"THIAGO FARIA",17,12]
[19,3,"FILIPE MENDES",18,13]
[19,3,"Aparecido Arantes",7,14]
[19,3,"Marcus Gregório",4,15]
[19,3,"Gladystone Reis",2,16]
[19,3,"Luciano Brandão",12,17]
[19,3,"Mario Lott",14,18]
[19,3,"Mathias Almeida",3,19]
[19,3,"ELDER DIAS MENDE",19,20]
[19,4,"Agostinho Neves",9,1]
[19,4,"Luciano Brandão",11,2]
[19,4,"Alexandre Melillo",13,3]
[19,4,"Anderson Teixeira",1,4]
[19,4,"Leandro Leite",10,5]
[19,4,"Lúcio Chequer",8,6]
[19,4,"Felipe Cardoso",14,7]
[19,4,"Leodegario Junior",6,8]
[19,4,"Marcus Gregório",5,9]
[19,4,"Aparecido Arantes",7,10]
[19,4,"Mathias Almeida",3,11]
[19,4,"Mario Lott",2,12]
[19,4,"Gladystone Reis",4,13]
[19,4,"MIGUEL FELIPPE",16,14]
[19,4,"DANIEL LOTT",15,15]
[19,4,"Fernando Mota",12,16]
[19,5,"Fernando Mota",12,1]
[19,5,"Agostinho Neves",11,2]
[19,5,"Breno Motta",14,3]
[19,5,"Anderson Teixeira",8,4]
[19,5,"Leandro Leite",9,5]
[19,5,"Alexandre Melillo",10,6]
[19,5,"LUCAS AUGUSTO",16,7]
[19,5,"Mathias Almeida",3,8]
[19,5,"Marcus Gregório",4,9]
[19,5,"Andreson Souza",13,10]
[19,5,"Aparecido Arantes",7,11]
[19,5,"LEONARDO RODRIGUES",17,12]
[19,5,"Felipe Cardoso",5,13]
[19,5,"Leodegario Junior",6,14]
[19,5,"James Hunt",15,15]
[19,5,"José Filho",18,16]
[19,5,"Gladystone Reis",2,17]
[19,5,"Mario Lott",1,18]
[19,5,"MAXIMILIANO GOMES",19,19]
[19,6,"Fernando Mota",9,1]
[19,6,"Luciano Brandão",10,2]
[19,6,"Mathias Almeida",2,3]
[19,6,"Andreson Souza",7,4]
[19,6,"Anderson Teixeira",6,5]
[19,6,"Breno Motta",5,6]
[19,6,"Alexandre Melillo",8,7]
[19,6,"Lúcio Chequer",11,8]
[19,6,"DEMHETRIO SOUZA",13,9]
[19,6,"LUCAS AUGUSTO",14,10]
[19,6,"BOLIVAR ANDRADE",15,11]
[19,6,"Aparecido Arantes",4,12]
[19,6,"Felipe Cardoso",12,13]
[19,6,"Marcus Gregório",3,14]
[19,6,"Gladystone Reis",1,15]
[19,6,"CELIO CAMPOS",16,16]
[19,6,"JOÃO LUIZ",17,17]
[19,7,"Alexandre Melillo",9,1]
[19,7,"Fernando Mota",11,2]
[19,7,"Lucas Tavares",1,3]
[19,7,"Breno Motta",6,4]
[19,7,"Aparecido Arantes",3,5]
[19,7,"Luciano Brandão",10,6]
[19,7,"Agostinho Neves",12,7]
[19,7,"Leandro Leite",13,8]
[19,7,"Lúcio Chequer",5,9]
[19,7,"Andreson Souza",8,10]
[19,7,"Mathias Almeida",4,11]
[19,7,"Anderson Teixeira",7,12]
[19,7,"James Hunt",14,13]
[19,7,"Mario Lott",15,14]
[19,7,"JOÃO LUIZ",16,15]
[19,7,"Gladystone Reis",2,16]
[19,8,"Fernando Mota",11,1]
[19,8,"Agostinho Neves",9,2]
[19,8,"Anderson Teixeira",7,3]
[19,8,"Luciano Brandão",10,4]
[19,8,"Aparecido Arantes",5,5]
[19,8,"Lúcio Chequer",6,6]
[19,8,"Andreson Souza",8,7]
[19,8,"Lucas Tavares",1,8]
[19,8,"Ed Hunt",3,9]
[19,8,"Leodegario Junior",12,10]
[19,8,"Gladystone Reis",2,11]
[19,8,"JOÃO LUIZ",13,12]
[19,8,"Mathias Almeida",4,13]
[19,9,"Fernando Mota",10,1]
[19,9,"Agostinho Neves",9,2]
[19,9,"Anderson Teixeira",7,3]
[19,9,"Breno Motta",12,4]
[19,9,"Luciano Brandão",8,5]
[19,9,"Ed Hunt",3,6]
[19,9,"Leandro Leite",13,7]
[19,9,"Alexandre Melillo",14,8]
[19,9,"Andreson Souza",6,9]
[19,9,"Aparecido Arantes",5,10]
[19,9,"Lúcio Chequer",4,11]
[19,9,"Leodegario Junior",1,12]
[19,9,"Gladystone Reis",2,13]
[19,9,"Marcus Gregório",11,14]
[19,10,"Luciano Brandão",10,1]
[19,10,"Fernando Mota",12,2]
[19,10,"FELIPE ANTUNES",14,3]
[19,10,"Mathias Almeida",13,4]
[19,10,"Leandro Leite",7,5]
[19,10,"Wilson Cristofani",15,6]
[19,10,"Agostinho Neves",11,7]
[19,10,"Alexandre Melillo",9,8]
[19,10,"Aparecido Arantes",5,9]
[19,10,"Leodegario Junior",1,10]
[19,10,"MARCELO JUNQUEIRA",16,11]
[19,10,"Anderson Teixeira",8,12]
[19,10,"Andreson Souza",6,13]
[19,10,"Lúcio Chequer",4,14]
[19,10,"Gladystone Reis",2,15]
[19,10,"Ed Hunt",3,16]
[19,11,"Anderson Teixeira",5,1]
[19,11,"Andreson Souza",3,2]
[19,11,"Leandro Leite",4,3]
[19,11,"Alexandre Melillo",6,4]
[19,11,"Luciano Brandão",8,5]
[19,11,"Agostinho Neves",7,6]
[19,11,"Ed Hunt",2,7]
[19,11,"Fernando Mota",9,8]
[19,11,"Gladystone Reis",1,9]
[19,11,"Wilson Cristofani",10,10]
[19,12,"Fernando Mota",8,1]
[19,12,"Luciano Brandão",7,2]
[19,12,"Alexandre Melillo",5,3]
[19,12,"Ed Hunt",2,4]
[19,12,"Lucas Tavares",11,5]
[19,12,"Anderson Teixeira",4,6]
[19,12,"Aparecido Arantes",12,7]
[19,12,"Andreson Souza",3,8]
[19,12,"Marcus Gregório",10,9]
[19,12,"Gladystone Reis",1,10]
[19,12,"Agostinho Neves",6,11]
[19,12,"Mathias Almeida",9,12]
[20,1,"Wilson Cristofani",1,1]
[20,1,"Joanes Gouvêa",3,2]
[20,1,"Diego Rodrigues",2,3]
[20,1,"Anderson Teixeira",7,4]
[20,1,"Rafael Miranda",6,5]
[20,1,"Luciano Brandão",8,6]
[20,1,"Leandro Leite",10,7]
[20,1,"Aparecido Arantes",13,8]
[20,1,"José Filho",14,9]
[20,1,"Lúcio Chequer",9,10]
[20,1,"Alexandre Melillo",4,11]
[20,1,"Guilherme Gonsalves",11,12]
[20,1,"João Ferreira",15,13]
[20,1,"Andreson Souza",5,14]
[20,1,"Gladystone Reis",12,15]
[20,2,"Alexandre Melillo",3,1]
[20,2,"Joanes Gouvêa",8,2]
[20,2,"Anderson Teixeira",7,3]
[20,2,"Wilson Cristofani",9,4]
[20,2,"Fernando Mota",11,5]
[20,2,"Agostinho Neves",10,6]
[20,2,"Felipe Cardoso",14,7]
[20,2,"Gladystone Reis",1,8]
[20,2,"Rafael Miranda",6,9]
[20,2,"João Ferreira",2,10]
[20,2,"Anderson Oliveira",15,11]
[20,2,"Mathias Almeida",13,12]
[20,2,"Leodegario Junior",12,13]
[20,2,"José Filho",4,14]
[20,2,"Aparecido Arantes",5,15]
[20,4,"Agostinho Neves",13,1]
[20,4,"Marcus Gregório",14,2]
[20,4,"Rafael Miranda",8,3]
[20,4,"Lúcio Chequer",6,4]
[20,4,"Mathias Almeida",9,5]
[20,4,"Alexandre Melillo",11,6]
[20,4,"Anderson Oliveira",5,7]
[20,4,"Luciano Brandão",7,8]
[20,4,"Gladystone Reis",4,9]
[20,4,"Wilson Cristofani",12,10]
[20,4,"Ed Hunt",1,11]
[20,4,"Anderson Teixeira",10,12]
[20,4,"João Ferreira",3,13]
[20,4,"FREDERICO RODRIGUES",15,14]
[20,4,"José Filho",16,15]
[20,4,"Andreson Souza",2,16]
[20,6,"Rafael Miranda",7,1]
[20,6,"Alexandre Melillo",8,2]
[20,6,"Luciano Brandão",5,3]
[20,6,"Marcus Gregório",2,4]
[20,6,"Anderson Teixeira",6,5]
[20,6,"Anderson Oliveira",3,6]
[20,6,"Lúcio Chequer",4,7]
[20,6,"Wilson Cristofani",10,8]
[20,6,"Ed Hunt",11,9]
[20,6,"Andreson Souza",1,10]
[20,6,"Felipe Cardoso",12,11]
[20,6,"Mathias Almeida",9,12]
[20,7,"Rafael Miranda",9,1]
[20,7,"Luciano Brandão",5,2]
[20,7,"Andreson Souza",2,3]
[20,7,"Anderson Teixeira",6,4]
[20,7,"Wilson Cristofani",8,5]
[20,7,"DIEGO SILVA",14,6]
[20,7,"Lúcio Chequer",3,7]
[20,7,"Mathias Almeida",7,8]
[20,7,"Alexandre Melillo",10,9]
[20,7,"Anderson Oliveira",4,10]
[20,7,"João Ferreira",11,11]
[20,7,"Marcus Gregório",13,12]
[20,7,"Gladystone Reis",12,13]
[20,7,"Ed Hunt",1,14]
[20,8,"Agostinho Neves",11,1]
[20,8,"Rafael Miranda",10,2]
[20,8,"Alexandre Melillo",9,3]
[20,8,"Wilson Cristofani",8,4]
[20,8,"Luciano Brandão",6,5]
[20,8,"Mathias Almeida",5,6]
[20,8,"Andreson Souza",2,7]
[20,8,"Anderson Oliveira",3,8]
[20,8,"Guilherme Gonzaga",13,9]
[20,8,"Gladystone Reis",1,10]
[20,8,"Anderson Teixeira",7,11]
[20,8,"Lúcio Chequer",4,12]
[20,8,"DIEGO SILVA",15,13]
[20,8,"Leodegario Junior",14,14]
[20,8,"Joanes Gouvêa",12,15]
[20,9,"Anderson Teixeira",8,1]
[20,9,"Luciano Brandão",9,2]
[20,9,"Lúcio Chequer",5,3]
[20,9,"Alexandre Melillo",10,4]
[20,9,"Marcus Gregório",13,5]
[20,9,"Mathias Almeida",7,6]
[20,9,"DIEGO SILVA",15,7]
[20,9,"Andreson Souza",4,8]
[20,9,"Anderson Oliveira",6,9]
[20,9,"Aparecido Arantes",14,10]
[20,9,"Gladystone Reis",3,11]
[20,9,"Guilherme Gonzaga",1,12]
[20,9,"João Ferreira",12,13]
[20,9,"Rafael Miranda",11,14]
[20,9,"Leodegario Junior",2,15]
[20,10,"Anderson Teixeira",8,1]
[20,10,"Mathias Almeida",6,2]
[20,10,"Wilson Cristofani",11,3]
[20,10,"Marcus Gregório",2,4]
[20,10,"Alexandre Melillo",9,5]
[20,10,"Luciano Brandão",7,6]
[20,10,"Rafael Miranda",10,7]
[20,10,"Lúcio Chequer",5,8]
[20,10,"Agostinho Neves",12,9]
[20,10,"Anderson Oliveira",4,10]
[20,10,"Guilherme Gonzaga",1,11]
[20,10,"Andreson Souza",3,12]
[20,11,"Luciano Brandão",4,1]
[20,11,"Andreson Souza",2,2]
[20,11,"Alexandre Melillo",5,3]
[20,11,"DIEGO SILVA",14,4]
[20,11,"OLDACK COUTINHO",15,5]
[20,11,"Mathias Almeida",10,6]
[20,11,"Anderson Teixeira",6,7]
[20,11,"Rafael Miranda",11,8]
[20,11,"Agostinho Neves",12,9]
[20,11,"Lúcio Chequer",3,10]
[20,11,"FILIPE MENDES",13,11]
[20,11,"Gladystone Reis",7,12]
[20,11,"João Ferreira",8,13]
[20,11,"Robert Freitas",9,14]
[20,11,"Marcus Gregório",1,15]
[20,12,"Fernando Mota",14,1]
[20,12,"Agostinho Neves",1,2]
[20,12,"Rafael Miranda",8,3]
[20,12,"Anderson Oliveira",10,4]
[20,12,"Luciano Brandão",7,5]
[20,12,"Lúcio Chequer",5,6]
[20,12,"Marcus Gregório",3,7]
[20,12,"Mathias Almeida",6,8]
[20,12,"Leodegario Junior",13,9]
[20,12,"Anderson Teixeira",9,10]
[20,12,"Ed Hunt",11,11]
[20,12,"Gladystone Reis",2,12]
[20,12,"Andreson Souza",4,13]
[20,12,"Guilherme Gonzaga",12,14]
[21,1,"Alexandre Melillo",13,1]
[21,1,"Agostinho Neves",6,2]
[21,1,"Marcus Gregorio",12,3]
[21,1,"Anderson Teixeira",10,4]
[21,1,"Rafael Miranda",14,5]
[21,1,"Felipe Franca",8,6]
[21,1,"Fernando Mota",11,7]
[21,1,"Petronio Jr.",15,8]
[21,1,"Lucas Rabelo",16,9]
[21,1,"Vitor Diniz",2,10]
[21,1,"Anderson Oliveira",7,11]
[21,1,"RAFAEL BARROTE",17,12]
[21,1,"Flavio Magalhães",5,13]
[21,1,"ANDRESON SOUZA",18,14]
[21,1,"Lúcio Chequer",4,15]
[21,1,"Leodegario Junior",3,16]
[21,1,"Luciano Brandão",9,17]
[21,1,"Aparecido Arantes",1,18]
[21,1,"GLADSON TORRES DE SOUZA",19,19]
[21,1,"Miguel Oliveira",20,20]
[21,1,"ANDRE ANDERSON",21,21]
[21,2,"Fernando Mota",6,1]
[21,2,"Agostinho Neves",7,2]
[21,2,"Luciano Brandão",2,3]
[21,2,"FELIPE CURI",4,4]
[21,2,"Alexandre Melillo",3,5]
[21,2,"Marcus Gregório",8,6]
[21,2,"Diego Silva",1,7]
[21,2,"Rafael Miranda",9,8]
[21,2,"Thales Silva",11,9]
[21,2,"Lúcio Chequer",17,10]
[21,2,"Anderson Oliveira",21,11]
[21,2,"Anderson Teixeira",14,12]
[21,2,"Leodegario Junior",16,13]
[21,2,"Matheus Dias",10,14]
[21,2,"Gladystone Reis",22,15]
[21,2,"Felipe Franca",18,16]
[21,2,"Arthur Santiago",13,17]
[21,2,"Mathias Almeida",19,18]
[21,2,"Bruno Camargos",26,19]
[21,2,"Lucas Mourão",24,20]
[21,2,"João Ferreira",23,21]
[21,2,"Pericles Barcelos",20,22]
[21,2,"Wilson Cristofani",15,23]
[21,2,"APOLO DU MONCEL",25,24]
[21,2,"Petronio Jr.",12,25]
[21,2,"Lucas Rabelo",5,26]
[21,3,"Fernando Mota",7,1]
[21,3,"Rafael Miranda",9,2]
[21,3,"Felipe Franca",5,3]
[21,3,"Agostinho Neves",3,4]
[21,3,"Alexandre Melillo",8,5]
[21,3,"Anderson Teixeira",6,6]
[21,3,"Aparecido Arantes",1,7]
[21,3,"Lucas Rabelo",10,8]
[21,3,"Lúcio Chequer",2,9]
[21,3,"Gabriel Gontijo",12,10]
[21,3,"Gladystone Reis",11,11]
[21,3,"Anderson Oliveira",4,12]
[21,4,"Rafael Miranda",10,1]
[21,4,"Lucas Rabelo",11,2]
[21,4,"Fernando Mota",6,3]
[21,4,"Agostinho Neves",4,4]
[21,4,"Alexandre Melillo",7,5]
[21,4,"Felipe Franca",12,6]
[21,4,"Gabriel Gontijo",8,7]
[21,4,"Gladystone Reis",9,8]
[21,4,"Aparecido Arantes",3,9]
[21,4,"Anderson Oliveira",1,10]
[21,4,"Lúcio Chequer",5,11]
[21,4,"Anderson Teixeira",2,12]
[21,5,"ANDERSON TEIXEIRA",11,1]
[21,5,"LUCAS RABELO",1,2]
[21,5,"Petronio Jr.",2,3]
[21,5,"MARCUS GREGORIO",17,4]
[21,5,"Luciano Brandão",20,5]
[21,5,"FELIPE CURI",19,6]
[21,5,"Fernando Mota",22,7]
[21,5,"RAFAEL MIRANDA",15,8]
[21,5,"ALEXANDRE MELILLO",18,9]
[21,5,"Diego Silva",16,10]
[21,5,"Anderson Oliveira",12,11]
[21,5,"Aparecido Arantes",23,12]
[21,5,"Felipe Franca",8,13]
[21,5,"Thales Silva",14,14]
[21,5,"FILIPE MENDES",25,15]
[21,5,"Mathias Almeida",6,16]
[21,5,"ARTHUR SANTIAGO",7,17]
[21,5,"Leodegario Junior",10,18]
[21,5,"Lúcio Chequer",13,19]
[21,5,"BRUNO CAMARGOS",5,20]
[21,5,"Matheus Dias",24,21]
[21,5,"GLADYSTONE REIS",9,22]
[21,5,"Agostinho Neves",21,23]
[21,5,"Lucas Mourão",4,24]
[21,5,"Pericles Barcelos",3,25]
[21,5,"DAVID EISENHOWER",26,26]
[21,6,"Petronio Jr.",8,1]
[21,6,"Lucas Rabelo",10,2]
[21,6,"Rafael Miranda",12,3]
[21,6,"Diego Silva",11,4]
[21,6,"Felipe Franca",6,5]
[21,6,"Alexandre Melillo",13,6]
[21,6,"Fernando Mota",17,7]
[21,6,"Anderson Oliveira",9,8]
[21,6,"Felipe curi",14,9]
[21,6,"Lúcio Chequer",19,10]
[21,6,"Matheus Dias",1,11]
[21,6,"Luciano Brandão",15,12]
[21,6,"Anderson Teixeira",16,13]
[21,6,"Leodegario Junior",5,14]
[21,6,"Bruno Camargos",2,15]
[21,6,"Thales Silva",7,16]
[21,6,"Flavio Magalhães",18,17]
[21,6,"GABRIEL GONTIJO",20,18]
[21,6,"Gladystone Reis",3,19]
[21,6,"Mathias Almeida",4,20]
[21,7,"Lucas Rabelo",11,1]
[21,7,"Marcus Gregorio",17,2]
[21,7,"Rafael Miranda",9,3]
[21,7,"Felipe Franca",7,4]
[21,7,"Petronio Jr.",12,5]
[21,7,"Alexandre Melillo",8,6]
[21,7,"FELIPE VEREZA",18,7]
[21,7,"JOANES GOUVEA",19,8]
[21,7,"Anderson Teixeira",20,9]
[21,7,"Flavio Magalhães",2,10]
[21,7,"Agostinho Neves",16,11]
[21,7,"Fernando Mota",10,12]
[21,7,"Anderson Oliveira",6,13]
[21,7,"Gabriel Gontijo",1,14]
[21,7,"Arthur Santiago",15,15]
[21,7,"Bruno Camargos",5,16]
[21,7,"TIAGO FREITAS",21,17]
[21,7,"Lucas Mourão",14,18]
[21,7,"VITOR DINIZ",22,19]
[21,7,"Gladystone Reis",4,20]
[21,7,"MARCIO CARNEIRO",23,21]
[21,7,"Lúcio Chequer",3,22]
[21,7,"Pericles Barcelos",13,23]
[21,8,"Petronio Jr.",12,1]
[21,8,"Rafael Miranda",9,2]
[21,8,"Fernando Mota",10,3]
[21,8,"Anderson Teixeira",11,4]
[21,8,"Felipe Franca",8,5]
[21,8,"Aparecido Arantes",15,6]
[21,8,"Agostinho Neves",7,7]
[21,8,"Alexandre Melillo",6,8]
[21,8,"Anderson Oliveira",5,9]
[21,8,"Lúcio Chequer",2,10]
[21,8,"Flavio Magalhães",4,11]
[21,8,"Gabriel Gontijo",3,12]
[21,8,"Leodegario Junior",13,13]
[21,8,"Vitor Diniz",1,14]
[21,8,"João Ferreira",14,15]
[21,9,"Lucas Rabelo",14,1]
[21,9,"Rafael Miranda",10,2]
[21,9,"Alexandre Melillo",7,3]
[21,9,"Petronio Jr.",11,4]
[21,9,"Marcus Gregorio",16,5]
[21,9,"Anderson Oliveira",6,6]
[21,9,"Fernando Mota",9,7]
[21,9,"Wilson Cristofani",17,8]
[21,9,"Luciano Brandão",15,9]
[21,9,"Vitor Diniz",1,10]
[21,9,"LUIS GUSTAVO",18,11]
[21,9,"Flavio Magalhães",5,12]
[21,9,"Leodegario Junior",4,13]
[21,9,"Bruno Camargos",13,14]
[21,9,"Anderson Teixeira",8,15]
[21,9,"Gabriel Gontijo",3,16]
[21,9,"Gladystone Reis",12,17]
[21,9,"Lúcio Chequer",2,18]
[21,9,"DANILO ALMEIDA",19,19]
[21,10,"URIAS BARBOSA",19,1]
[21,10,"Rafael Miranda",11,2]
[21,10,"Petronio Jr.",12,3]
[21,10,"Lucas Rabelo",13,4]
[21,10,"Marcus Gregorio",9,5]
[21,10,"PEDRO MANCINI",20,6]
[21,10,"Alexandre Melillo",7,7]
[21,10,"IGOR RUBIM",21,8]
[21,10,"Lúcio Chequer",2,9]
[21,10,"Luciano Brandão",6,10]
[21,10,"Leodegario Junior",4,11]
[21,10,"Arthur Santiago",17,12]
[21,10,"Flavio Magalhães",5,13]
[21,10,"Diego Silva",15,14]
[21,10,"Gabriel Gontijo",3,15]
[21,10,"Felipe Franca",14,16]
[21,10,"Vitor Diniz",1,17]
[21,10,"Anderson Teixeira",8,18]
[21,10,"LUIS GUSTAVO",18,19]
[21,10,"Leandro Leite",16,20]
[21,10,"Fernando Mota",10,21]
[21,11,"Alexandre Melillo",8,1]
[21,11,"Lucas Rabelo",10,2]
[21,11,"Marcus Gregorio",9,3]
[21,11,"Anderson Teixeira",7,4]
[21,11,"Diego Silva",3,5]
[21,11,"Flavio Magalhães",5,6]
[21,11,"Agostinho Neves",12,7]
[21,11,"Vitor Diniz",1,8]
[21,11,"RAFAEL BARROTE",13,9]
[21,11,"Gabriel Gontijo",2,10]
[21,11,"Lúcio Chequer",4,11]
[21,11,"DANILO SOARES",14,12]
[21,11,"Luciano Brandão",6,13]
[21,11,"Gladystone Reis",11,14]
[21,12,"Lucas Rabelo",9,1]
[21,12,"Fernando Mota",10,2]
[21,12,"Petronio Jr.",15,3]
[21,12,"Rafael Miranda",11,4]
[21,12,"Anderson Teixeira",6,5]
[21,12,"Marcus Gregorio",8,6]
[21,12,"Alexandre Melillo",7,7]
[21,12,"Lúcio Chequer",3,8]
[21,12,"Luciano Brandão",5,9]
[21,12,"Agostinho Neves",2,10]
[21,12,"Felipe Franca",13,11]
[21,12,"Leodegario Junior",12,12]
[21,12,"Aparecido Arantes",16,13]
[21,12,"ANDRESON SOUZA",17,14]
[21,12,"Anderson Oliveira",14,15]
[21,12,"Flavio Magalhães",4,16]
[21,12,"Vitor Diniz",1,17]
[21,12,"BRUNO LARANJO",18,18]
[21,12,"RAFAEL BARROTE",19,19]
[21,12,"GUI FIGUEIREDO",20,20]
[21,12,"GLADSON SOUZA",21,21]
[22,1,"Alexandre Melillo",2,1]
[22,1,"Aparecido Arantes",17,2]
[22,1,"Anderson Teixeira",8,3]
[22,1,"Agostinho Neves",10,4]
[22,1,"Lúcio Chequer",23,5]
[22,1,"Luciano Brandão",13,6]
[22,1,"Anderson Oliveira",12,7]
[22,1,"Mathias Almeida",5,8]
[22,1,"Vitor Diniz",11,9]
[22,1,"Leandro Leite",14,10]
[22,1,"Leodegario Junior",1,11]
[22,1,"Gladson Souza",4,12]
[22,1,"Matheus Dias",15,13]
[22,1,"Gerson Junior",21,14]
[22,1,"Emerson Guimarães",19,15]
[22,1,"Leonardo Mattioda",16,16]
[22,1,"Danilo Soares",7,17]
[22,1,"Ezequiel Netto",3,18]
[22,1,"Gladystone Reis",6,19]
[22,1,"Arthur Santiago",18,20]
[22,1,"Felipe Franca",20,21]
[22,1,"Fernando Mota",22,22]
[22,1,"Gabriel Gontijo",9,23]
[22,2,"Luciano Brandão",5,1]
[22,2,"Fernando Mota",3,2]
[22,2,"Agostinho Neves",2,3]
[22,2,"Alexandre Melillo",6,4]
[22,2,"Lúcio Chequer",13,5]
[22,2,"Anderson Oliveira",12,6]
[22,2,"Joanes Gouvea",4,7]
[22,2,"Anderson Teixeira",1,8]
[22,2,"Emerson Guimarães",14,9]
[22,2,"Rodrigo Guimaraes",7,10]
[22,2,"Vitor Diniz",8,11]
[22,2,"Gabriel Gontijo",9,12]
[22,2,"Leonardo Mattioda",15,13]
[22,2,"Leandro Leite",10,14]
[22,2,"Ezequiel Netto",17,15]
[22,2,"Gladson Souza",16,16]
[22,2,"Wilson Cristofani",11,17]
[22,3,"Lúcio Chequer",5,1]
[22,3,"Fernando Mota",8,2]
[22,3,"Gerson Junior",20,3]
[22,3,"Felipe Franca",19,4]
[22,3,"Emerson Guimarães",1,5]
[22,3,"Arthur Santiago",17,6]
[22,3,"Aparecido Arantes",16,7]
[22,3,"Leonardo Mattioda",13,8]
[22,3,"Matheus Dias",22,9]
[22,3,"Leandro Leite",12,10]
[22,3,"Luciano Brandão",9,11]
[22,3,"Anderson Oliveira",4,12]
[22,3,"Vitor Diniz",10,13]
[22,3,"Wilson Cristofani",15,14]
[22,3,"Agostinho Neves",7,15]
[22,3,"Gabriel Gontijo",11,16]
[22,3,"Anderson Teixeira",2,17]
[22,3,"Danilo Soares",18,18]
[22,3,"Gladystone Reis",21,19]
[22,3,"Mathias Almeida",23,20]
[22,3,"Gladson Souza",14,21]
[22,3,"Ezequiel Netto",24,22]
[22,3,"Alexandre Melillo",6,23]
[22,3,"Leodegario Junior",25,24]
[22,3,"Joanes Gouvea",3,25]
[22,4,"Anderson Teixeira",4,1]
[22,4,"Luciano Brandão",7,2]
[22,4,"Fernando Mota",9,3]
[22,4,"Agostinho Neves",6,4]
[22,4,"Joanes Gouvea",17,5]
[22,4,"FILIPE MENDES",22,6]
[22,4,"Mathias Almeida",23,7]
[22,4,"Arthur Santiago",14,8]
[22,4,"Gabriel Gontijo",16,9]
[22,4,"Alexandre Melillo",10,10]
[22,4,"FRED CORREA",24,11]
[22,4,"Anderson Oliveira",1,12]
[22,4,"Matheus Dias",13,13]
[22,4,"GUILHERME ROCHA",25,14]
[22,4,"Emerson Guimarães",3,15]
[22,4,"Rodrigo Guimaraes",20,16]
[22,4,"Leonardo Mattioda",12,17]
[22,4,"GABRIEL ARRUDA ",26,18]
[22,4,"André Triginelli",21,19]
[22,4,"Gerson Junior",2,20]
[22,4,"Vitor Diniz",11,21]
[22,4,"Lúcio Chequer",8,22]
[22,4,"Leodegario Junior",18,23]
[22,4,"Danilo Soares",19,24]
[22,4,"Gladson Souza",15,25]
[22,4,"Aparecido Arantes",5,26]
[22,6,"Fernando Mota",5,1]
[22,6,"Anderson Teixeira",4,2]
[22,6,"Joanes Gouvea",14,3]
[22,6,"Luciano Brandão",2,4]
[22,6,"Lúcio Chequer",1,5]
[22,6,"Leonardo Mattioda",9,6]
[22,6,"Aparecido Arantes",10,7]
[22,6,"Arthur Santiago",13,8]
[22,6,"Matheus Dias",6,9]
[22,6,"Vitor Diniz",12,10]
[22,6,"Gladson Souza",8,11]
[22,6,"Alexandre Melillo",3,12]
[22,6,"Danilo Soares",11,13]
[22,6,"Leodegario Junior",7,14]
[22,7,"Alexandre Melillo",2,1]
[22,7,"Agostinho Neves",12,2]
[22,7,"Anderson Teixeira",5,3]
[22,7,"Fernando Mota",6,4]
[22,7,"Joanes Gouvea",7,5]
[22,7,"Lúcio Chequer",3,6]
[22,7,"Luciano Brandão",4,7]
[22,7,"Leonardo Mattioda",8,8]
[22,7,"Leodegario Junior",10,9]
[22,7,"Gladson Souza",9,10]
[22,7,"Rodrigo Guimaraes",14,11]
[22,7,"Emerson Guimarães",13,12]
[22,7,"Danilo Soares",11,13]
[22,7,"VINICIUS GRECO",15,14]
[22,7,"Ezequiel Netto",16,15]
[22,7,"Arthur Santiago",1,16]
[22,8,"Alexandre Melillo",5,1]
[22,8,"Mathias Almeida",15,2]
[22,8,"Joanes Gouvea",2,3]
[22,8,"Anderson Teixeira",6,4]
[22,8,"Anderson Oliveira",14,5]
[22,8,"Leonardo Mattioda",8,6]
[22,8,"Lúcio Chequer",3,7]
[22,8,"Arthur Santiago",1,8]
[22,8,"Luciano Brandão",4,9]
[22,8,"Vitor Diniz",11,10]
[22,8,"Aparecido Arantes",13,11]
[22,8,"Fernando Mota",7,12]
[22,8,"Leodegario Junior",10,13]
[22,8,"Gabriel Gontijo",12,14]
[22,8,"Gladson Souza",9,15]
[22,9,"Joanes Gouvea",2,1]
[22,9,"Anderson Teixeira",5,2]
[22,9,"Fernando Mota",7,3]
[22,9,"Alexandre Melillo",6,4]
[22,9,"Lúcio Chequer",4,5]
[22,9,"Mathias Almeida",15,6]
[22,9,"Leonardo Mattioda",1,7]
[22,9,"Gabriel Gontijo",16,8]
[22,9,"VICTOR CERQUEIRA",17,9]
[22,9,"Aparecido Arantes",10,10]
[22,9,"Agostinho Neves",11,11]
[22,9,"Luciano Brandão",3,12]
[22,9,"Emerson Guimarães",12,13]
[22,9,"Rodrigo Guimaraes",14,14]
[22,9,"Vitor Diniz",8,15]
[22,9,"Danilo Soares",13,16]
[22,9,"VINICIUS GRECO",18,17]
[22,9,"Gladson Souza",9,18]
[22,9,"Ezequiel Netto",19,19]
[22,9,"FILIPE MENDES",20,20]
[22,10,"Fernando Mota",8,1]
[22,10,"Lúcio Chequer",5,2]
[22,10,"Anderson Teixeira",7,3]
[22,10,"Wilson Cristofani",15,4]
[22,10,"Joanes Gouvea",3,5]
[22,10,"Emerson Guimarães",1,6]
[22,10,"Arthur Santiago",13,7]
[22,10,"Vitor Diniz",9,8]
[22,10,"Leonardo Mattioda",2,9]
[22,10,"VINICIUS GRECO",16,10]
[22,10,"Luciano Brandão",4,11]
[22,10,"Alexandre Melillo",6,12]
[22,10,"Leodegario Junior",14,13]
[22,10,"Aparecido Arantes",10,14]
[22,10,"Gladson Souza",11,15]
[22,10,"Rodrigo Guimaraes",12,16]
[22,11,"Agostinho Neves",11,1]
[22,11,"Joanes Gouvea",3,2]
[22,11,"Anderson Teixeira",6,3]
[22,11,"Fernando Mota",7,4]
[22,11,"Alexandre Melillo",5,5]
[22,11,"Luciano Brandão",2,6]
[22,11,"Leonardo Mattioda",1,7]
[22,11,"Wilson Cristofani",10,8]
[22,11,"Lúcio Chequer",4,9]
[22,11,"Vitor Diniz",8,10]
[22,11,"Gladson Souza",9,11]
[22,11,"Danilo Soares",12,12]
[22,12,"Anderson Teixeira",10,1]
[22,12,"Joanes Gouvea",4,2]
[22,12,"EZEQUIEL BARBOSA",11,3]
[22,12,"Luciano Brandão",3,4]
[22,12,"Alexandre Melillo",6,5]
[22,12,"Fernando Mota",7,6]
[22,12,"Gladson Souza",8,7]
[22,12,"Leonardo Mattioda",2,8]
[22,12,"Vitor Diniz",1,9]
[22,12,"Aparecido Arantes",9,10]
[22,12,"Lúcio Chequer",5,11]
[22,12,"MARCIO ELIZEU",12,12]
[]
[]
[]
[]
[]
[]
[]
[]
[]
[]
[]
[]
[]
[]
[]
[]
[]
[]
[]
[]
[]
[]
[]
[]
[]
[]
[]
[]
[]
[]
[]
[]
[]
[]
[]
[]
[]
[]
[]
[]
[]
[]
[]
[]
[]
[]
[]
[]
[]
[]
[]
[]
[]
[]
[]
[]
[]
[]
[]
[]
[]
[]
[]
[]
[]
[]
[]
[]
[]
[]
[]
[]
[]
[]
[]
[]
[]
[]
[]
[]
[]
[]
[]
[]
[]
[]
[]
[]
[]
[]
[]
[]
[]
[]
[]
[]
[]
[]
[]
[]
[]
[]
[]
[]
[]
[]
[]
[]
[]
[]
[]
[]
[]
[]
[]
[]
[]
[]
[]
[]
[]
[]
[]
[]
[]
[]
[]
[]
[]
[]
[]
[]
[]
[]
[]
[]
[]
[]
[]
[]
[]
[]
[]
[]
[]
[]
[]
[]
[]
[]
[]
[]
[]
[]
[]
[]
[]
[]
[]
[]
[]
[]
[]
[]
[]
[]
[]
[]
[]
[]
[]
[]
[]
[]
[]
[]
[]
[]
[]
[]
[]
[]
[]
[]
[]
[]
[]
[]
[]
[]
[]
[]
[]
[]
[]
[]
[]
[]
[]
[]
[]
[]
[]
[]
[]
[]
[]
[]
[]
[]
[]
[]
[]
[]
[]
[]
[]
[]
[]
[]
[]
[]
[]
[]
[]
[]
[]
[]
[]
[]
[]
[]
[]
[]
[]
[]
[]
[]
[]
[]
[]
[]
[]
[]
[]
[]
[]
[]
[]
[]
[]
[]
[]
[]
[]
[]
[]
[]
[]
[]
[]
[]
[]
[]
[]
[]
[]
[]
[]
[]
[]
[]
[]
[]
[]
[]
[]
[]
[]
[]
[]
[]
[]
[]
[]
[]
[]
[]
[]
[]
[]
[]
[]
[]
[]
[]
[]
[]
[]
[]
[]
[]
[]
[]
[]
[]
[]
[]
[]
[]
[]
[]
[]
[]
[]
[]
[]
[]
[]
[]
[]
[]
[]
[]
[]
[]
[]
[]
[]
[]
[]
[]
[]
[]
[]
[]
[]
[]
[]
[]
[]
[]
[]
[]
[]
[]
[]
[]
[]
[]
[]
[]
[]
[]
[]
[]
[]
[]
[]
[]
[]
[]
[]
[]
[]
[]
[]
[]
[]
[]
[]
[]
[]
[]
[]
[]
[]
[]
[]
[]
[]
[]
[]
[]
[]
[]
[]
[]
[]
[]
[]
[]
[]
[]
[]
[]
[]
[]
[]
[]
[]
[]
[]
[]
[]
[]
[]
[]
[]
[]
[]
[]
[]
[]
[]
[]
[]
[]
[]
[]
[]
[]
[]
[]
[]
[]
[]
[]
[]
[]
[]
[]
[]
[]
[]
[]
[]
[]
[]
[]
[]
[]
[]
[]
[]
[]
[]
[]
[]
[]
[]
[]
[]
[]
[]
[]
[]
[]
[]
[]
[]
[]
[]
[]
[]
[]
[]
[]
[]
[]
[]
[]
[]
[]
[]
[]
[]
[]
[]
[]
[]
[]
[]
[]
[]
[]
[]
[]
[]
[]
[]
[]
[]
[]
[]
[]
[]
[]
[]
[]
[]
[]
[]
[]
[]
[]
[]
[]
[]
[]
[]
[]
[]
[]
[]
[]
[]
[]
[]
[]
[]
[]
[]
[]
[]
[]
[]
[]
[]
[]
[]
[]
[]
[]
[]
[]
[]
[]
[]
[]
[]
[]
[]
[]
[]
[]
[]
[]
[]
[]
[]
[]
[]
[]
[]
[]
[]
[]
[]
[]
[]
[]
[]
[]
[]
[]
[]
[]
[]
[]
[]
[]
[]
[]
[]
[]
[]
[]
[]
[]
[]
[]
[]
[]
[]
[]
[]
[]
[]
[]
[]
[]
[]
[]
[]
[]
[]
[]
[]
[]
[]
[]
[]
[]
[]
[]
[]
[]
[]
[]
[]
[]
[]
[]
[]
[]
[]
[]
[]
[]
[]
[]
[]
[]
[]
[]
[]
[]
[]
[]
[]
[]
[]
[]
[]
[]
[]
[]
[]
[]
[]
[]
[]
[]
[]
[]
[]
[]
[]
[]
[]
[]
[]
[]
[]
[]
[]
[]
[]
[]
[]
[]
[]
[]
[]
[]
[]
[]
[]
[]
[]
[]
[]
[]
[]
[]
[]
[]
[]
[]
[]
[]
[]
[]
[]
[]
[]
[]
[]
[]
[]
[]
[]
[]
[]
[]
[]
[]
[]
[]
[]
[]
[]
[]
[]
[]
[]
[]
[]
[]
[]
[]
[]
[]
[]
[]
[]
[]
[]
[]
[]
[]
[]
[]
[]
[]
[]
[]
[]
[]
[]
[]
[]
[]
[]
[]
[]
[]
[]
[]
[]
[]
[]
[]
[]
[]
[]
[]
[]
[]
[]
[]
[]
[]
[]
[]
[]
[]
[]
[]
[]
[]
[]
[]
[]
[]
[]
[]
[]
[]
[]
[]
[]
[]
[]
[]
[]
[]
[]
[]
[]
[]
[]
[]
[]
[]
[]
[]
[]
[]
[]
[]
[]
[]
[]
[]
[]
[]
[]
[]
[]
[]
[]
[]
[]
[]
[]
[]
[]
[]
[]
[]
[]
[]
[]
[]
[]
[]
[]
[]
[]
[]
[]
[]
[]
[]
[]
[]
[]
[]
[]
[]
[]
[]
[]
[]
[]
[]
[]
[]
[]
[]
[]
[]
[]
[]
[]
[]
[]
[]
[]
[]
[]
[]
[]
[]
[]
[]
[]
[]
[]
[]
[]
[]
[]
[]
[]
[]
[]
[]
[]
[]
[]
[]
[]
[]
[]
[]
[]
[]
[]
[]
[]
[]
[]
[]
[]
[]
[]
[]
[]
[]
[]
[]
[]
[]
[]
[]
[]
[]
[]
[]
[]
[]
[]
[]
[]
[]
[]
[]
[]
[]
[]
[]
[]
[]
[]
[]
[]
[]
[]
[]
[]
[]
[]
[]
[]
[]
[]
[]
[]
[]
[]
[]
[]
[]
[]
[]
[]
[]
[]
[]
[]
[]
[]
[]
[]
[]
[]
[]
[]
[]
[]
[]
[]
[]
[]
[]
[]
[]
[]
[]
[]
[]
[]
[]
[]
[]
[]
[]
[]
[]
[]
[]
[]
[]
[]
[]
[]
[]
[]
[]
[]
[]
[]
[]
[]
[]
[]
[]
[]
[]
[]
[]
[]
[]
[]
[]
[]
[]
[]
[]
[]
[]
[]
[]
[]
[]
[]
[]
[]
[]
[]
[]
[]
[]
[]
[]
[]
[]
[]
[]
[]
[]
[]
[]
[]
[]
[]
[]
[]
[]
[]
[]
[]
[]
[]
[]
[]
[]
[]
[]
[]
[]
[]
[]
[]
[]
[]
[]
[]
[]
[]
[]
[]
[]
[]
[]
[]
[]
[]
[]
[]
[]
[]
[]
[]
[]
[]
[]
[]
[]
[]
[]
[]
[]
[]
[]
[]
[]
[]
[]
[]
[]
[]
[]
[]
[]
[]
[]
[]
[]
[]
[]
[]
[]
[]
[]
[]
[]
[]
[]
[]
[]
[]
[]
[]
[]
[]
[]
[]
[]
[]
[]
[]
[]
[]
[]
[]
[]
[]
[]
[]
[]
[]
[]
[]
[]
[]
[]
[]
[]
[]
[]
[]
[]
[]
[]
[]
[]
[]
[]
[]
[]
[]
[]
[]
[]
[]
[]
[]
[]
[]
[]
[]
[]
[]
[]
[]
[]
[]
[]
[]
[]
[]
[]
[]
[]
[]
[]
[]
[]
[]
[]
[]
[]
[]
[]
[]
[]
[]
[]
[]
[]
[]
[]
[]
[]
[]
[]
[]
[]
[]
[]
[]
[]
[]
[]
[]
[]
[]
[]
[]
[]
[]
[]
[]
[]
[]
[]
[]
[]
[]
[]
[]
[]
[]
[]
[]
[]
[]
[]
[]
[]
[]
[]
[]
[]
[]
[]
[]
[]
[]
[]
[]
[]
[]
[]
[]
[]
[]
[]
[]
[]
[]
[]
[]
[]
[]
[]
[]
[]
[]
[]
[]
[]
[]
[]
[]
[]
[]
[]
[]
[]
[]
[]
[]
[]
[]
[]
[]
[]
[]
[]
[]
[]
[]
[]
[]
[]
[]
[]
[]
[]
[]
[]
[]
[]
[]
[]
[]
[]
[]
[]
[]
[]
[]
[]
[]
[]
[]
[]
[]
[]
[]
[]
[]
[]
[]
[]
[]
[]
[]
[]
[]
[]
[]
[]
[]
[]
[]
[]
[]
[]
[]
[]
[]
[]
[]
[]
[]
[]
[]
[]
[]
[]
[]
[]
[]
[]
[]
[]
[]
[]
[]
[]
[]
[]
[]
[]
[]
[]
[]
[]
[]
[]
[]
[]
[]
[]
[]
[]
[]
[]
[]
[]
[]
[]
[]
[]
[]
[]
[]
[]
[]
[]
[]
[]
[]
[]
[]
[]
[]
[]
[]
[]
[]
[]
[]
[]
[]
[]
[]
[]
[]
[]
[]
[]
[]
[]
[]
[]
[]
[]
[]
[]
[]
[]
[]
[]
[]
[]
[]
[]
[]
[]
[]
[]
[]
[]
[]
[]
[]
[]
[]
[]
[]
[]
[]
[]
[]
[]
[]
[]
[]
[]
[]
[]
[]
[]
[]
[]
[]
[]
[]
[]
[]
[]
[]
[]
[]
[]
[]
[]
[]
[]
[]
[]
[]
[]
[]
[]
[]
[]
[]
[]
[]
[]
[]
[]
[]
[]
[]
[]
[]
[]
[]
[]
[]
[]
[]
[]
[]
[]
[]
[]
[]
[]
[]
[]
[]
[]
[]
[]
[]
[]
[]
[]
[]
[]
[]
[]
[]
[]
[]
[]
[]
[]
[]
[]
[]
[]
[]
[]
[]
[]
[]
[]
[]
[]
[]
[]
[]
[]
[]
[]
[]
[]
[]
[]
[]
[]
[]
[]
[]
[]
[]
[]
[]
[]
[]
[]
[21,6,"Petronio Jr.",8,1]